[Event "Early-Titled-Tuesday-Blitz-August-29-2023"]
[Site "Chess.com"]
[Date "2023.08.29"]
[Round "7"]
[White "Aygehovit1992"]
[Black "TrenerChos"]
[Result "1-0"]
[WhiteElo "2745"]
[BlackElo "2570"]
[TimeControl "180+1"]
[EndTime "9:17:00 PDT"]
[Termination "Aygehovit1992 won by resignation"]

1. e4 {[%clk 0:03:00.9]} 1... e5 {[%clk 0:02:59.5]} 2. Nf3 {[%clk 0:03:01.1]}
2... Nc6 {[%clk 0:02:59.6]} 3. Bb5 {[%clk 0:03:01.1]} 3... Nf6 {[%clk
0:02:59.8]} 4. O-O {[%clk 0:03:00.2]} 4... Nxe4 {[%clk 0:02:59.1]} 5. d4 {[%clk
0:03:00.6]} 5... Nd6 {[%clk 0:02:57.3]} 6. Bxc6 {[%clk 0:03:01.1]} 6... dxc6
{[%clk 0:02:57.5]} 7. dxe5 {[%clk 0:03:02]} 7... Nf5 {[%clk 0:02:57.8]} 8. Qxd8+
{[%clk 0:03:02.9]} 8... Kxd8 {[%clk 0:02:58.7]} 9. h3 {[%clk 0:03:03.7]} 9...
Ke8 {[%clk 0:02:57.4]} 10. Nc3 {[%clk 0:03:03.2]} 10... Be7 {[%clk 0:02:57.4]}
11. Re1 {[%clk 0:02:56.5]} 11... h6 {[%clk 0:02:52.4]} 12. Ne2 {[%clk
0:02:46.3]} 12... Be6 {[%clk 0:02:51.2]} 13. Nf4 {[%clk 0:02:46.4]} 13... Rd8
{[%clk 0:02:50.1]} 14. a4 {[%clk 0:02:41.1]} 14... Nd4 {[%clk 0:02:49.4]} 15.
Nxd4 {[%clk 0:02:39.4]} 15... Rxd4 {[%clk 0:02:50.3]} 16. Nxe6 {[%clk
0:02:39.5]} 16... fxe6 {[%clk 0:02:51.2]} 17. Be3 {[%clk 0:02:39.2]} 17... Rd5
{[%clk 0:02:49.4]} 18. Bxa7 {[%clk 0:02:35.1]} 18... b6 {[%clk 0:02:47.2]} 19.
a5 {[%clk 0:02:29.3]} 19... Bc5 {[%clk 0:02:28.5]} 20. axb6 {[%clk 0:02:19.8]}
20... cxb6 {[%clk 0:02:29.4]} 21. Re2 {[%clk 0:02:06.4]} 21... Kd7 {[%clk
0:02:24.5]} 22. b4 {[%clk 0:01:59.9]} 22... Bd4 {[%clk 0:02:23.1]} 23. c4 {[%clk
0:01:46.3]} 23... Bxa1 {[%clk 0:01:55.7]} 24. cxd5 {[%clk 0:01:46.2]} 24... exd5
{[%clk 0:01:56.1]} 25. Bxb6 {[%clk 0:01:39]} 25... Re8 {[%clk 0:01:55.5]} 26. f4
{[%clk 0:01:34.9]} 26... Ke6 {[%clk 0:01:55.4]} 27. g4 {[%clk 0:01:31.3]} 27...
g6 {[%clk 0:01:55.4]} 28. Kg2 {[%clk 0:01:28.5]} 28... Rf8 {[%clk 0:01:55.2]}
29. Kg3 {[%clk 0:01:27.9]} 29... Rb8 {[%clk 0:01:52.1]} 30. Bc5 {[%clk
0:01:18.9]} 30... Bc3 {[%clk 0:01:51.7]} 31. Bd6 {[%clk 0:01:04.6]} 31... Ra8
{[%clk 0:01:36]} 32. h4 {[%clk 0:00:42.8]} 32... d4 {[%clk 0:01:34.2]} 33. h5
{[%clk 0:00:42.9]} 33... d3 {[%clk 0:01:33.5]} 34. Re3 {[%clk 0:00:24.4]} 34...
d2 {[%clk 0:01:31.1]} 35. Rd3 {[%clk 0:00:24.9]} 35... Ra1 {[%clk 0:01:15.2]}
36. hxg6 {[%clk 0:00:24.1]} 36... Bxe5 {[%clk 0:00:59.9]} 37. Bxe5 {[%clk
0:00:18]} 37... d1=Q {[%clk 0:00:54.2]} 38. Rxd1 {[%clk 0:00:16.4]} 38... Rxd1
{[%clk 0:00:55.1]} 39. Kf3 {[%clk 0:00:08.7]} 39... Rb1 {[%clk 0:00:44]} 40. f5+
{[%clk 0:00:04]} 40... Ke7 {[%clk 0:00:33.7]} 41. f6+ {[%clk 0:00:04]} 41... Ke6
{[%clk 0:00:33.7]} 42. f7 {[%clk 0:00:04.4]} 42... Rb3+ {[%clk 0:00:26.9]} 43.
Ke2 {[%clk 0:00:04.3]} 1-0

[Event "Early-Titled-Tuesday-Blitz-August-29-2023"]
[Site "Chess.com"]
[Date "2023.08.29"]
[Round "7"]
[White "mapleaff"]
[Black "ural58"]
[Result "0-1"]
[WhiteElo "2299"]
[BlackElo "2517"]
[TimeControl "180+1"]
[EndTime "9:17:01 PDT"]
[Termination "ural58 won by resignation"]

1. d4 {[%clk 0:02:59.8]} 1... d5 {[%clk 0:02:53.6]} 2. Bf4 {[%clk 0:02:58.6]}
2... Nf6 {[%clk 0:02:53]} 3. Nf3 {[%clk 0:02:54.4]} 3... e6 {[%clk 0:02:46.4]}
4. e3 {[%clk 0:02:53.3]} 4... c5 {[%clk 0:02:44.6]} 5. Nbd2 {[%clk 0:02:33.4]}
5... Bd7 {[%clk 0:02:41.7]} 6. Ne5 {[%clk 0:02:27.7]} 6... Bc6 {[%clk
0:02:36.4]} 7. c3 {[%clk 0:02:21.1]} 7... Nbd7 {[%clk 0:02:34.3]} 8. Nxc6 {[%clk
0:02:20.7]} 8... bxc6 {[%clk 0:02:34.2]} 9. Ba6 {[%clk 0:02:18.4]} 9... Qb6
{[%clk 0:02:33.7]} 10. Qa4 {[%clk 0:02:07.4]} 10... Nh5 {[%clk 0:02:27.3]} 11.
Bg3 {[%clk 0:01:59.5]} 11... Nxg3 {[%clk 0:02:26.5]} 12. hxg3 {[%clk 0:02:00.4]}
12... c4 {[%clk 0:02:15.6]} 13. b4 {[%clk 0:01:52.8]} 13... Nb8 {[%clk 0:02:12]}
14. b5 {[%clk 0:01:49.8]} 14... Nxa6 {[%clk 0:02:12]} 15. bxa6 {[%clk
0:01:39.5]} 15... Bd6 {[%clk 0:02:04.7]} 16. Ke2 {[%clk 0:01:33.7]} 16... O-O
{[%clk 0:02:03.8]} 17. Rab1 {[%clk 0:01:30.7]} 17... Qc7 {[%clk 0:02:03.5]} 18.
Rb7 {[%clk 0:01:30.4]} 18... Qc8 {[%clk 0:02:03.5]} 19. Qc2 {[%clk 0:00:38.1]}
19... h6 {[%clk 0:02:01.3]} 20. Nf3 {[%clk 0:00:37.2]} 20... c5 {[%clk
0:01:56.9]} 21. Ng5 {[%clk 0:00:33.3]} 21... f5 {[%clk 0:01:56.6]} 22. Nf3
{[%clk 0:00:19.7]} 22... Qc6 {[%clk 0:01:53.1]} 23. Rhb1 {[%clk 0:00:06.8]}
23... Qxa6 {[%clk 0:01:50.1]} 24. dxc5 {[%clk 0:00:06.1]} 24... Bxc5 {[%clk
0:01:49.6]} 25. Rd7 {[%clk 0:00:05.7]} 25... Rab8 {[%clk 0:01:44.2]} 26. Rxb8
{[%clk 0:00:05.9]} 26... Rxb8 {[%clk 0:01:43.5]} 27. g4 {[%clk 0:00:04.7]} 27...
Qc6 {[%clk 0:01:43]} 28. Ne5 {[%clk 0:00:03.6]} 28... Qc8 {[%clk 0:01:37.1]} 29.
gxf5 {[%clk 0:00:03.7]} 29... Qe8 {[%clk 0:01:36.3]} 30. fxe6 {[%clk 0:00:03.5]}
30... Qxe6 {[%clk 0:01:36.5]} 31. Qg6 {[%clk 0:00:03.8]} 31... Qxg6 {[%clk
0:01:36.3]} 32. Nxg6 {[%clk 0:00:04.7]} 32... Rb2+ {[%clk 0:01:34.3]} 33. Kf3
{[%clk 0:00:04.8]} 33... Rxa2 {[%clk 0:01:33]} 34. Rxd5 {[%clk 0:00:05.1]} 34...
Bb6 {[%clk 0:01:28]} 35. Ne5 {[%clk 0:00:04.8]} 35... Ra4 {[%clk 0:01:22]} 36.
Ke4 {[%clk 0:00:02.8]} 36... Ra2 {[%clk 0:01:19.7]} 37. f4 {[%clk 0:00:02.5]}
37... Rxg2 {[%clk 0:01:19.5]} 38. Nxc4 {[%clk 0:00:02.9]} 38... Rg6 {[%clk
0:01:18.5]} 39. Rd7 {[%clk 0:00:02.5]} 39... Rc6 {[%clk 0:01:14.4]} 40. Kd5
{[%clk 0:00:02.5]} 40... Rc5+ {[%clk 0:01:14]} 41. Kd4 {[%clk 0:00:02.6]} 41...
h5 {[%clk 0:01:06.7]} 42. Nxb6 {[%clk 0:00:02.4]} 42... axb6 {[%clk 0:01:06.5]}
43. Rd5 {[%clk 0:00:02.8]} 43... Rxd5+ {[%clk 0:01:06]} 44. Kxd5 {[%clk
0:00:03.7]} 44... h4 {[%clk 0:01:06.3]} 45. Ke4 {[%clk 0:00:04]} 45... Kf7
{[%clk 0:01:05.6]} 46. Kf3 {[%clk 0:00:04.4]} 46... Ke6 {[%clk 0:01:04.8]} 47.
Kg4 {[%clk 0:00:04.7]} 47... Kd5 {[%clk 0:01:05.4]} 48. Kxh4 {[%clk 0:00:04.5]}
48... Ke4 {[%clk 0:01:05.6]} 49. Kg5 {[%clk 0:00:04.7]} 49... Kxe3 {[%clk
0:01:05.9]} 50. f5 {[%clk 0:00:04.8]} 50... Ke4 {[%clk 0:01:06.3]} 51. Kg6
{[%clk 0:00:04.9]} 51... b5 {[%clk 0:01:04.6]} 52. Kg5 {[%clk 0:00:02.9]} 52...
Kd5 {[%clk 0:00:59.8]} 53. Kg6 {[%clk 0:00:02.8]} 53... Ke5 {[%clk 0:01:00.2]}
54. Kg5 {[%clk 0:00:03.2]} 54... Ke4 {[%clk 0:01:00]} 55. Kg6 {[%clk 0:00:03.5]}
55... Kf4 {[%clk 0:01:00.2]} 56. f6 {[%clk 0:00:02.2]} 56... gxf6 {[%clk
0:01:00]} 57. Kxf6 {[%clk 0:00:03.1]} 57... Ke4 {[%clk 0:01:00.5]} 58. Kg5
{[%clk 0:00:03.3]} 58... Kd3 {[%clk 0:01:00.7]} 59. Kf4 {[%clk 0:00:03.9]} 59...
Kxc3 {[%clk 0:01:01.3]} 60. Ke3 {[%clk 0:00:04.7]} 60... b4 {[%clk 0:01:01]} 0-1

[Event "Early-Titled-Tuesday-Blitz-August-29-2023"]
[Site "Chess.com"]
[Date "2023.08.29"]
[Round "7"]
[White "DKmirl"]
[Black "ajedrezhoy"]
[Result "0-1"]
[WhiteElo "2248"]
[BlackElo "2429"]
[TimeControl "180+1"]
[EndTime "9:17:01 PDT"]
[Termination "ajedrezhoy won on time"]

1. d4 {[%clk 0:02:59.5]} 1... Nf6 {[%clk 0:02:58.6]} 2. Nf3 {[%clk 0:03:00.1]}
2... b6 {[%clk 0:02:57.8]} 3. g3 {[%clk 0:03:00.6]} 3... Bb7 {[%clk 0:02:57.3]}
4. Bg2 {[%clk 0:03:01.1]} 4... c5 {[%clk 0:02:57.4]} 5. O-O {[%clk 0:02:54.9]}
5... g6 {[%clk 0:02:56.6]} 6. c4 {[%clk 0:02:51.1]} 6... Bg7 {[%clk 0:02:52]} 7.
d5 {[%clk 0:02:50.9]} 7... b5 {[%clk 0:02:52]} 8. cxb5 {[%clk 0:02:48]} 8...
Nxd5 {[%clk 0:02:44.2]} 9. a3 {[%clk 0:02:33.6]} 9... O-O {[%clk 0:02:42.7]} 10.
Qc2 {[%clk 0:02:31.1]} 10... d6 {[%clk 0:02:37.1]} 11. Nc3 {[%clk 0:02:25.3]}
11... Nxc3 {[%clk 0:02:36.3]} 12. bxc3 {[%clk 0:02:24.1]} 12... a6 {[%clk
0:02:34.4]} 13. bxa6 {[%clk 0:02:09.5]} 13... Nxa6 {[%clk 0:02:33.5]} 14. Rb1
{[%clk 0:02:09.3]} 14... Ra7 {[%clk 0:02:14.5]} 15. c4 {[%clk 0:02:00.7]} 15...
Nc7 {[%clk 0:02:12.1]} 16. Bb2 {[%clk 0:01:53.6]} 16... Bxb2 {[%clk 0:02:10]}
17. Qxb2 {[%clk 0:01:54.1]} 17... Bxf3 {[%clk 0:02:08.5]} 18. Bxf3 {[%clk
0:01:52.7]} 18... Ne6 {[%clk 0:02:08.5]} 19. e3 {[%clk 0:01:50.9]} 19... Qa5
{[%clk 0:02:07.1]} 20. Ra1 {[%clk 0:01:01.7]} 20... Qa4 {[%clk 0:01:39.6]} 21.
Qb5 {[%clk 0:00:35]} 21... Ra5 {[%clk 0:01:21.5]} 22. Qb7 {[%clk 0:00:22.2]}
22... Ra7 {[%clk 0:01:18.1]} 23. Qb5 {[%clk 0:00:21.1]} 23... Rd8 {[%clk
0:01:06.6]} 24. Rfb1 {[%clk 0:00:18]} 24... Ra5 {[%clk 0:01:04.3]} 25. Qb6
{[%clk 0:00:17.4]} 25... Kf8 {[%clk 0:01:01.2]} 26. Bd5 {[%clk 0:00:15.6]} 26...
Ra6 {[%clk 0:00:59.9]} 27. Qb5 {[%clk 0:00:13.7]} 27... Nc7 {[%clk 0:00:54.7]}
28. Qb7 {[%clk 0:00:11.9]} 28... Ra7 {[%clk 0:00:53.4]} 29. Qc6 {[%clk 0:00:11]}
29... Qxc6 {[%clk 0:00:51.8]} 30. Bxc6 {[%clk 0:00:11.4]} 30... e6 {[%clk
0:00:51.3]} 31. a4 {[%clk 0:00:11.4]} 31... Ra5 {[%clk 0:00:49.3]} 32. Rb7
{[%clk 0:00:09.8]} 32... Ne8 {[%clk 0:00:44.6]} 33. Bxe8 {[%clk 0:00:09.2]}
33... Kxe8 {[%clk 0:00:43.9]} 34. Rc7 {[%clk 0:00:08.4]} 34... Rd7 {[%clk
0:00:43.5]} 35. Rc8+ {[%clk 0:00:08]} 35... Ke7 {[%clk 0:00:43.4]} 36. Rc6
{[%clk 0:00:04.8]} 36... Rda7 {[%clk 0:00:42.8]} 37. Rd1 {[%clk 0:00:05.2]}
37... Rd7 {[%clk 0:00:36.2]} 38. Ra1 {[%clk 0:00:04.7]} 38... h5 {[%clk
0:00:35.2]} 39. Kg2 {[%clk 0:00:04.7]} 39... d5 {[%clk 0:00:29.4]} 40. cxd5
{[%clk 0:00:03.7]} 40... exd5 {[%clk 0:00:29.3]} 41. Rc1 {[%clk 0:00:03.9]}
41... c4 {[%clk 0:00:29.2]} 42. Ra1 {[%clk 0:00:03.4]} 42... Rd6 {[%clk
0:00:27.7]} 43. Rc7+ {[%clk 0:00:03.3]} 43... Ke6 {[%clk 0:00:27.8]} 44. Kf3
{[%clk 0:00:03.1]} 44... Rda6 {[%clk 0:00:26.7]} 0-1

[Event "Early-Titled-Tuesday-Blitz-August-29-2023"]
[Site "Chess.com"]
[Date "2023.08.29"]
[Round "7"]
[White "alexrustemov"]
[Black "Beca95"]
[Result "1-0"]
[WhiteElo "2866"]
[BlackElo "2953"]
[TimeControl "180+1"]
[EndTime "9:17:02 PDT"]
[Termination "alexrustemov won by resignation"]

1. d4 {[%clk 0:03:00.9]} 1... Nf6 {[%clk 0:03:00.5]} 2. c4 {[%clk 0:03:01]} 2...
e6 {[%clk 0:03:01.1]} 3. Nf3 {[%clk 0:03:01.4]} 3... c5 {[%clk 0:03:01.5]} 4. d5
{[%clk 0:03:01.8]} 4... d6 {[%clk 0:03:01.6]} 5. Nc3 {[%clk 0:03:02.1]} 5...
exd5 {[%clk 0:03:02.2]} 6. cxd5 {[%clk 0:03:02.8]} 6... g6 {[%clk 0:03:02.4]} 7.
h3 {[%clk 0:03:03]} 7... a6 {[%clk 0:03:00.2]} 8. a4 {[%clk 0:03:01.3]} 8... Qe7
{[%clk 0:03:00.7]} 9. Bf4 {[%clk 0:02:59.3]} 9... Nbd7 {[%clk 0:03:00.4]} 10. e3
{[%clk 0:02:57.8]} 10... Bg7 {[%clk 0:02:59.3]} 11. Be2 {[%clk 0:02:58.1]} 11...
O-O {[%clk 0:02:59.2]} 12. O-O {[%clk 0:02:58.6]} 12... Ne8 {[%clk 0:02:59.1]}
13. Nd2 {[%clk 0:02:55.1]} 13... f5 {[%clk 0:02:58.3]} 14. Qc2 {[%clk
0:02:52.1]} 14... g5 {[%clk 0:02:58.1]} 15. Bh2 {[%clk 0:02:51.9]} 15... f4
{[%clk 0:02:58.7]} 16. Bg4 {[%clk 0:02:37.3]} 16... Ne5 {[%clk 0:02:57.2]} 17.
Bxc8 {[%clk 0:02:34.1]} 17... Rxc8 {[%clk 0:02:58.1]} 18. exf4 {[%clk
0:02:28.2]} 18... gxf4 {[%clk 0:02:59]} 19. Rae1 {[%clk 0:02:24.8]} 19... Qg5
{[%clk 0:02:50.9]} 20. Kh1 {[%clk 0:02:22.4]} 20... Rc7 {[%clk 0:02:44.3]} 21.
Qe4 {[%clk 0:02:06.9]} 21... Rcf7 {[%clk 0:02:26.2]} 22. Nf3 {[%clk 0:02:06.6]}
22... Qh5 {[%clk 0:02:26.7]} 23. Nxe5 {[%clk 0:01:44.5]} 23... Bxe5 {[%clk
0:02:27.6]} 24. f3 {[%clk 0:01:43.7]} 24... Ng7 {[%clk 0:02:25]} 25. Ne2 {[%clk
0:01:40.4]} 25... Qg5 {[%clk 0:02:17.7]} 26. b4 {[%clk 0:01:39.6]} 26... Nh5
{[%clk 0:01:47.8]} 27. bxc5 {[%clk 0:01:35.6]} 27... dxc5 {[%clk 0:01:48.7]} 28.
Qc4 {[%clk 0:01:24.1]} 28... Rg7 {[%clk 0:01:38.6]} 29. Rg1 {[%clk 0:01:16]}
29... Kh8 {[%clk 0:01:14.8]} 30. Qxc5 {[%clk 0:01:15.2]} 30... Qf6 {[%clk
0:01:14.6]} 31. Rd1 {[%clk 0:01:06.2]} 31... Bd6 {[%clk 0:01:12.8]} 32. Qd4
{[%clk 0:01:05.2]} 32... Be5 {[%clk 0:01:12.7]} 33. Qd3 {[%clk 0:01:03]} 33...
Rd8 {[%clk 0:01:08.1]} 34. Qb3 {[%clk 0:00:53.9]} 34... Re7 {[%clk 0:00:59.9]}
35. Rd2 {[%clk 0:00:52.8]} 35... Qh4 {[%clk 0:00:48.5]} 36. Rgd1 {[%clk
0:00:51.9]} 36... Rg7 {[%clk 0:00:41.9]} 37. Nc3 {[%clk 0:00:51.5]} 37... Ng3+
{[%clk 0:00:13.2]} 38. Bxg3 {[%clk 0:00:51.5]} 38... fxg3 {[%clk 0:00:14.1]} 39.
Ne4 {[%clk 0:00:50.4]} 39... Bf4 {[%clk 0:00:14.7]} 40. Rd3 {[%clk 0:00:48.7]}
40... Rdd7 {[%clk 0:00:11.2]} 41. d6 {[%clk 0:00:48.5]} 41... Qh5 {[%clk
0:00:11.4]} 42. Qe6 {[%clk 0:00:46.8]} 42... Qf7 {[%clk 0:00:05.4]} 43. Qxf7
{[%clk 0:00:44.8]} 43... Rgxf7 {[%clk 0:00:06.3]} 44. Nc5 {[%clk 0:00:41.3]}
44... Rxd6 {[%clk 0:00:04.3]} 45. Rxd6 {[%clk 0:00:40.9]} 45... Bxd6 {[%clk
0:00:04.9]} 46. Rxd6 {[%clk 0:00:41.4]} 46... Rc7 {[%clk 0:00:05.6]} 47. Rd8+
{[%clk 0:00:36.6]} 47... Kg7 {[%clk 0:00:04.3]} 48. Ne6+ {[%clk 0:00:36.9]}
48... Kf6 {[%clk 0:00:03.7]} 49. Nxc7 {[%clk 0:00:37.5]} 1-0

[Event "Early-Titled-Tuesday-Blitz-August-29-2023"]
[Site "Chess.com"]
[Date "2023.08.29"]
[Round "7"]
[White "nitpicker"]
[Black "pedromartinez91"]
[Result "0-1"]
[WhiteElo "2298"]
[BlackElo "2451"]
[TimeControl "180+1"]
[EndTime "9:17:02 PDT"]
[Termination "pedromartinez91 won on time"]

1. d4 {[%clk 0:03:00.9]} 1... Nf6 {[%clk 0:02:50.5]} 2. c4 {[%clk 0:03:00.1]}
2... e5 {[%clk 0:02:50.5]} 3. dxe5 {[%clk 0:02:56.9]} 3... Ng4 {[%clk
0:02:50.1]} 4. Bf4 {[%clk 0:02:55]} 4... Nc6 {[%clk 0:02:47.2]} 5. Nf3 {[%clk
0:02:52.7]} 5... Bb4+ {[%clk 0:02:44.9]} 6. Nbd2 {[%clk 0:02:51.1]} 6... Qe7
{[%clk 0:02:44.1]} 7. e3 {[%clk 0:02:49.9]} 7... Ngxe5 {[%clk 0:02:36.6]} 8.
Nxe5 {[%clk 0:02:50.4]} 8... Nxe5 {[%clk 0:02:37.2]} 9. Be2 {[%clk 0:02:50.8]}
9... d6 {[%clk 0:02:25.9]} 10. a3 {[%clk 0:02:40.7]} 10... Bxd2+ {[%clk
0:02:15.6]} 11. Qxd2 {[%clk 0:02:41.6]} 11... b6 {[%clk 0:02:13.4]} 12. b4
{[%clk 0:02:28.9]} 12... Bb7 {[%clk 0:02:11.4]} 13. O-O {[%clk 0:02:28]} 13...
O-O {[%clk 0:02:06.5]} 14. Rfc1 {[%clk 0:02:22.6]} 14... Rad8 {[%clk 0:01:43.8]}
15. Qc3 {[%clk 0:02:07.1]} 15... Ng6 {[%clk 0:01:36.8]} 16. Bg3 {[%clk
0:02:03.3]} 16... f5 {[%clk 0:01:37.3]} 17. f4 {[%clk 0:01:40.3]} 17... Rfe8
{[%clk 0:01:24.7]} 18. Kf2 {[%clk 0:01:18.8]} 18... Nh4 {[%clk 0:01:23.3]} 19.
Bf3 {[%clk 0:01:11.8]} 19... Nxf3 {[%clk 0:00:58.8]} 20. gxf3 {[%clk 0:01:11.9]}
20... Qf7 {[%clk 0:00:59]} 21. Kg2 {[%clk 0:00:51.6]} 21... Re6 {[%clk
0:00:55.3]} 22. c5 {[%clk 0:00:44.8]} 22... dxc5 {[%clk 0:00:54.3]} 23. bxc5
{[%clk 0:00:45.1]} 23... Rde8 {[%clk 0:00:47.5]} 24. Re1 {[%clk 0:00:42]} 24...
Qh5 {[%clk 0:00:46.9]} 25. Rf1 {[%clk 0:00:30.7]} 25... Ba6 {[%clk 0:00:20.7]}
26. Rfe1 {[%clk 0:00:27.3]} 26... Bb7 {[%clk 0:00:20]} 27. Rf1 {[%clk
0:00:26.9]} 27... Bd5 {[%clk 0:00:20.3]} 28. Rae1 {[%clk 0:00:21.2]} 28... c6
{[%clk 0:00:20]} 29. cxb6 {[%clk 0:00:20.2]} 29... axb6 {[%clk 0:00:20.8]} 30.
Rf2 {[%clk 0:00:18.4]} 30... b5 {[%clk 0:00:20.5]} 31. Qd4 {[%clk 0:00:16.8]}
31... Qf7 {[%clk 0:00:19.9]} 32. Qc3 {[%clk 0:00:16.3]} 32... Qe7 {[%clk
0:00:19.3]} 33. Rfe2 {[%clk 0:00:16.7]} 33... h5 {[%clk 0:00:19.6]} 34. h3
{[%clk 0:00:15.2]} 34... h4 {[%clk 0:00:19.4]} 35. Bh2 {[%clk 0:00:12.7]} 35...
Qf7 {[%clk 0:00:19.8]} 36. Rf2 {[%clk 0:00:11.5]} 36... Qh5 {[%clk 0:00:19.7]}
37. Qd4 {[%clk 0:00:09.1]} 37... Rg6+ {[%clk 0:00:19.6]} 38. Kf1 {[%clk
0:00:08]} 38... Bxf3 {[%clk 0:00:19.9]} 39. Qd7 {[%clk 0:00:06.9]} 39... Rge6
{[%clk 0:00:17.3]} 40. Qc7 {[%clk 0:00:06]} 40... Bd5 {[%clk 0:00:17.3]} 41. Qd7
{[%clk 0:00:05.5]} 41... Qg6 {[%clk 0:00:16.5]} 42. Ree2 {[%clk 0:00:03.5]}
42... Kh7 {[%clk 0:00:15.3]} 43. Re1 {[%clk 0:00:01.5]} 43... R8e7 {[%clk
0:00:15.6]} 0-1

[Event "Early-Titled-Tuesday-Blitz-August-29-2023"]
[Site "Chess.com"]
[Date "2023.08.29"]
[Round "7"]
[White "GMForgacs"]
[Black "slidingknight2775"]
[Result "1/2-1/2"]
[WhiteElo "2440"]
[BlackElo "2570"]
[TimeControl "180+1"]
[EndTime "9:17:05 PDT"]
[Termination "Game drawn by repetition"]

1. e4 {[%clk 0:03:00.9]} 1... c6 {[%clk 0:02:59.8]} 2. d4 {[%clk 0:02:59.6]}
2... d5 {[%clk 0:03:00.4]} 3. Nd2 {[%clk 0:03:00.1]} 3... dxe4 {[%clk 0:03:00]}
4. Nxe4 {[%clk 0:03:01]} 4... Nf6 {[%clk 0:03:00]} 5. Nxf6+ {[%clk 0:03:01.2]}
5... exf6 {[%clk 0:03:00.9]} 6. c3 {[%clk 0:03:01.5]} 6... Bd6 {[%clk
0:03:01.3]} 7. Bd3 {[%clk 0:03:02.1]} 7... O-O {[%clk 0:03:01.7]} 8. Qc2 {[%clk
0:03:02.1]} 8... Re8+ {[%clk 0:03:01.5]} 9. Ne2 {[%clk 0:03:02.8]} 9... h5
{[%clk 0:03:02]} 10. Be3 {[%clk 0:03:03.4]} 10... Nd7 {[%clk 0:03:01]} 11. O-O-O
{[%clk 0:03:04]} 11... b5 {[%clk 0:02:54.7]} 12. Ng3 {[%clk 0:03:03.8]} 12...
Nb6 {[%clk 0:02:20.2]} 13. Nxh5 {[%clk 0:03:01.4]} 13... Bg4 {[%clk 0:02:20.7]}
14. Be2 {[%clk 0:02:53]} 14... Bxe2 {[%clk 0:02:17.8]} 15. Qxe2 {[%clk
0:02:53.9]} 15... Nc4 {[%clk 0:02:07.8]} 16. Qg4 {[%clk 0:02:53.5]} 16... g6
{[%clk 0:02:06.7]} 17. Nf4 {[%clk 0:02:29.6]} 17... f5 {[%clk 0:00:58.3]} 18.
Qh3 {[%clk 0:02:10.1]} 18... Qc7 {[%clk 0:00:31.4]} 19. Nd3 {[%clk 0:02:01.5]}
19... f4 {[%clk 0:00:26]} 20. Bd2 {[%clk 0:01:57.1]} 20... a5 {[%clk 0:00:15.2]}
21. g3 {[%clk 0:01:48.3]} 21... Re2 {[%clk 0:00:12.3]} 22. gxf4 {[%clk
0:01:42.6]} 22... Nxd2 {[%clk 0:00:11]} 23. Rxd2 {[%clk 0:01:43.5]} 23... Bxf4
{[%clk 0:00:11]} 24. Nxf4 {[%clk 0:01:42.1]} 24... Qxf4 {[%clk 0:00:11.9]} 25.
Rd1 {[%clk 0:01:37.4]} 25... Rxf2 {[%clk 0:00:12.1]} 26. Qd7 {[%clk 0:01:13.7]}
26... Rxd2 {[%clk 0:00:10.1]} 27. Rxd2 {[%clk 0:01:13.7]} 27... Qf6 {[%clk
0:00:08.4]} 28. Re2 {[%clk 0:00:55.7]} 28... Rd8 {[%clk 0:00:07.7]} 29. Re8+
{[%clk 0:00:52.1]} 29... Rxe8 {[%clk 0:00:07.8]} 30. Qxe8+ {[%clk 0:00:53]}
30... Kg7 {[%clk 0:00:08.7]} 31. Qe2 {[%clk 0:00:43.9]} 31... Qf4+ {[%clk
0:00:08.7]} 32. Kc2 {[%clk 0:00:43.9]} 32... a4 {[%clk 0:00:07.1]} 33. a3 {[%clk
0:00:43.8]} 33... Qf5+ {[%clk 0:00:06.8]} 34. Kd2 {[%clk 0:00:42]} 34... Qf4+
{[%clk 0:00:06.7]} 35. Ke1 {[%clk 0:00:41.5]} 35... Qc1+ {[%clk 0:00:05.8]} 36.
Kf2 {[%clk 0:00:41.9]} 36... Qf4+ {[%clk 0:00:06.5]} 37. Kg2 {[%clk 0:00:41.9]}
37... g5 {[%clk 0:00:06.3]} 38. h3 {[%clk 0:00:25.3]} 38... Qf5 {[%clk
0:00:04.7]} 39. Kg3 {[%clk 0:00:19.6]} 39... Qf4+ {[%clk 0:00:04.7]} 40. Kg2
{[%clk 0:00:20.3]} 40... Qf5 {[%clk 0:00:05.6]} 41. Kg3 {[%clk 0:00:19.7]} 41...
Kg6 {[%clk 0:00:05.9]} 42. Kg2 {[%clk 0:00:17.5]} 42... Qf4 {[%clk 0:00:05.9]}
43. Qc2+ {[%clk 0:00:15.6]} 43... Qf5 {[%clk 0:00:05.8]} 44. Qe2 {[%clk
0:00:15.4]} 44... Qd5+ {[%clk 0:00:06]} 45. Kg3 {[%clk 0:00:15.5]} 45... Qd6+
{[%clk 0:00:05.1]} 46. Kg2 {[%clk 0:00:15.7]} 46... Qd5+ {[%clk 0:00:05.7]} 47.
Kg3 {[%clk 0:00:15.9]} 47... Qf5 {[%clk 0:00:06.4]} 48. Kg2 {[%clk 0:00:16]}
1/2-1/2